[Event "Israeli Team U18-ch 2022"]
[Site "Be'er Ya'akov"]
[Date "2022.08.15"]
[Round "3.3"]
[White "Shteiman, Yuval"]
[Black "Milikow, Elie"]
[Result "0-1"]
[ECO "A25"]
[WhiteElo "2034"]
[BlackElo "2433"]
[Annotator "TA"]
[PlyCount "66"]
[EventDate "2022.08.14"]
[EventCountry "ISR"]
[SourceTitle "playchess.com"]
[Source "ChessBase"]
[SourceQuality "1"]
[TimeControl "3000+10"]

{[%evp 10,66,-6,-13,8,0,0,-4,-2,-6,0,-5,-9,-17,-19,-21,0,-11,0,0,4,0,46,4,24,14,34,24,61,45,46,56,80,10,16,10,11,17,34,0,0,0,0,0,0,-9,0,-804,-727,-29982,-29983,-6125,-1778,-1230,-814,-754,-739,-29998,-29999]} 1. c4 {[%emt 0:00:04]} e5 {[%emt 0:00:08]} 2. g3 {[%emt 0:00:05]} Nc6 {[%emt 0:00:53]} 3. Bg2 {[%emt 0:00:13]} Nf6 {[%emt 0:02:02]} 4. Nc3 {[%emt 0:00:22]} Bb4 {[%emt 0:00:48]} 5. e4 {[%emt 0:00:42]} O-O {[%emt 0:02:25]} 6. Nge2 {[%emt 0:00:22]} a6 {[%emt 0:03:50] A25: English Opening vs King's Indian with ...Nc6 but without early d3.} 7. O-O {[%emt 0:00:41]} Bc5 {[%emt 0:02:06]} 8. d3 {[%emt 0:00:53]} d6 {[%emt 0:01:24] The position is equal.} 9. h3 {[%emt 0:03:32]} h6 {[%emt 0:05:45]} 10. Kh2 {[%emt 0:01:34]} b5 {[%emt 0:02:52] [#]} 11. a3 $146 {[%emt 0:07:52]} ({Predecessor:} 11. Nd5 bxc4 12. dxc4 Nxd5 13. cxd5 Nd4 14. Be3 Nxe2 15. Qxe2 a5 16. Rfc1 Bxe3 17. Qxe3 {0-1 (44) Matlakov,M (2694)-Wojtaszek,R (2749) Doha 2016}) 11... bxc4 {[%emt 0:02:30]} 12. dxc4 {[%emt 0:00:06]} Be6 {[%emt 0:01:06]} 13. Nd5 {[%emt 0:01:29]} (13. b4 $5 {[%cal Rb4c5]} Ba7 14. Nd5 $11) 13... Nd4 {[%emt 0:02:56]} 14. b4 {[%emt 0:09:19]} Ba7 {[%emt 0:04:56]} 15. Bb2 {[%emt 0:00:57]} c6 {[%emt 0:01:46]} (15... Nxe2 $11 {is superior.} 16. Qxe2 Nd7) 16. Ne3 {[%emt 0:02:55][%cal Re2d4]} Nxe2 {[%emt 0:04:01]} (16... c5 {is more complex.} 17. f4 Rb8 18. Nd5 Nd7) 17. Qxe2 {[%emt 0:00:06][%cal Oc4c5]} Bxe3 {[%emt 0:01:10]} 18. Qxe3 {[%emt 0:00:35]} ({Much worse is} 18. fxe3 c5 $15) 18... Bxc4 {[%emt 0:06:29]} 19. Rfc1 {[%emt 0:00:05]} d5 {[%emt 0:00:11]} (19... Bb5 $2 20. a4 $18) 20. Bxe5 {[%emt 0:02:32]} Re8 {[%emt 0:00:15][%cal Bf8e8,Be8a8,Ba8a2][%mdl 32]} 21. f4 {[%emt 0:01:33]} (21. Qd4 $16) 21... a5 $11 {[%emt 0:01:04]} 22. Qd4 {[%emt 0:04:52]} axb4 {[%emt 0:00:38]} 23. axb4 {[%emt 0:00:06] With the idea Rxa8.} Qe7 {[%emt 0:00:46]} 24. Rxa8 {[%emt 0:05:05]} Rxa8 {[%emt 0:00:06]} 25. Qc5 {[%emt 0:00:13]} Qe6 {[%emt 0:01:46]} 26. Qd6 {[%emt 0:01:06]} Ra2 {[%emt 0:01:07] And now ...Qxd6 would win.} 27. Kh1 {[%emt 0:02:37]} Nxe4 {[%emt 0:00:45] The board is on fire. Active counter play!} 28. Qd8+ {[%emt 0:01:00][%mdl 8192] [#]} (28. Qxe6 $11 Nf2+ 29. Kg1 fxe6 30. Bf1) 28... Kh7 $19 {[%emt 0:00:08]} 29. Re1 {[%emt 0:02:35]} Nxg3+ {[%emt 0:00:47]} 30. Kg1 {[%emt 0:01:14]} Qg6 {[%emt 0:00:08]} (30... Nf5 $142 31. Qa5 Rxa5 32. bxa5 Qg6) 31. Qh4 {[%emt 0:00:21] [#]} Bf1 $1 {[%emt 0:00:13][%mdl 512]} 32. Rxf1 {[%emt 0:00:13]} Nxf1 {[%emt 0:00:14]} 33. Kxf1 {[%emt 0:00:05]} Qxg2+ {[%emt 0:00:08] Weighted Error Value: White=0.71/Black=0.44} 0-1

[Event "Israeli Team U18-ch 2022"]
[Site "Be'er Ya'akov"]
[Date "2022.08.15"]
[Round "3.4"]
[White "Gorshtein, Asaf"]
[Black "Friedland, Eldar"]
[Result "0-1"]
[ECO "B38"]
[WhiteElo "2112"]
[BlackElo "1990"]
[Annotator "TA"]
[PlyCount "106"]
[EventDate "2022.08.14"]
[EventCountry "ISR"]
[SourceTitle "playchess.com"]
[Source "ChessBase"]
[SourceQuality "1"]
[TimeControl "3000+10"]

{[%evp 28,106,55,55,50,50,55,23,33,31,70,8,13,6,26,23,25,34,27,35,41,12,20,0,35,31,40,47,47,56,56,33,31,0,0,-215,-214,-208,-199,-206,-189,-238,-230,-409,-393,-377,-260,-267,-269,-260,-222,-235,-184,-281,-283,-277,-281,-273,0,-276,-270,-244,-248,-275,-275,-281,-260,-581,-591,-569,-577,-578,-567,-577,-555,-618,-559,-2182,-1986,-2516,-2209]} 1. e4 {[%emt 0:00:06]} c5 {[%emt 0:00:19]} 2. Nf3 {[%emt 0:00:05]} g6 {[%emt 0:00:07]} 3. d4 {[%emt 0:00:06]} cxd4 {[%emt 0:00:09]} 4. Nxd4 {[%emt 0:00:04]} Bg7 {[%emt 0:00:08]} 5. c4 {[%emt 0:00:06]} Nc6 {[%emt 0:00:06]} 6. Be3 {[%emt 0:00:04]} Nf6 {[%emt 0:00:09]} 7. Nc3 {[%emt 0:00:05]} O-O {[%emt 0:00:13]} 8. Be2 {[%emt 0:00:06]} d6 {[%emt 0:00:17]} 9. O-O {[%emt 0:00:14]} Bd7 {[%emt 0:00:13]} 10. Qd2 {[%emt 0:01:00]} Nxd4 {[%emt 0:00:17]} 11. Bxd4 {[%emt 0:00:06]} Bc6 {[%emt 0:00:08]} 12. f3 {[%emt 0:00:32]} Nd7 {[%emt 0:00:14]} 13. Be3 {[%emt 0:05:02]} a5 {[%emt 0:00:25]} 14. b3 {[%emt 0:00:08]} Nc5 {[%emt 0:00:19]} 15. Rac1 {[%emt 0:00:38]} Be5 {[%emt 0:02:51] B38: Sicilian: Maroczy Bind with 5...Bg7 and 7...0-0.} 16. Rfd1 {[%emt 0:01:14]} e6 {[%emt 0:01:36]} 17. Bd4 {[%emt 0:02:35]} Qb6 {[%emt 0:06:51] White has an edge.} 18. Nb5 {[%emt 0:11:47] [#]} Rfd8 $146 {[%emt 0:07:29]} ({Predecessor:} 18... Bxd4+ 19. Qxd4 e5 20. Qe3 Bxb5 21. cxb5 Rfd8 22. Bc4 Rac8 23. Kh1 Qc7 24. Bd5 Qd7 {1-0 (67) Hungaski,R (2492)-Iturrizaga Bonelli,E (2663) Medellin 2017}) 19. Qe3 {[%emt 0:02:12]} (19. Bf2 $14) 19... Bxd4 {[%emt 0:05:38]} 20. Qxd4 {[%emt 0:01:06]} Bxb5 {[%emt 0:00:36]} 21. cxb5 {[%emt 0:00:03]} Nd7 {[%emt 0:03:52]} (21... Rac8 {keeps more tension.} 22. Qf2 d5 23. Rd2 Nd7) 22. Qxb6 {[%emt 0:01:32]} (22. Qf2 {looks sharper.} a4 23. Rd2 d5 24. exd5 Qd6 25. bxa4 Nb6 26. Bd1) 22... Nxb6 {[%emt 0:00:05]} 23. Rc7 {[%emt 0:00:07]} Rab8 {[%emt 0:00:12]} 24. a4 {[%emt 0:01:49][%cal Ob3b4,Ba2a4,Ba4a5][%mdl 32]} Kf8 {[%emt 0:04:59]} 25. Rd4 {[%emt 0:04:27]} Ke8 {[%emt 0:02:46]} 26. b4 {[%emt 0:01:44]} e5 {[%emt 0:02:21]} 27. Rd2 {[%emt 0:00:18]} ({Inferior is} 27. bxa5 Na8 28. Rdc4 Nxc7 29. Rxc7 Rdc8 $17) 27... axb4 {[%emt 0:01:41]} 28. a5 {[%emt 0:00:06]} Na4 {[%emt 0:01:18]} 29. b6 $1 {[%emt 0:09:47]} Nc3 {[%emt 0:01:32] Prevents Bb5+.} 30. Bc4 {[%emt 0:00:05]} (30. Bf1 $5 {[%cal Rd2b2]}) 30... Rd7 {[%emt 0:00:33]} 31. Rxd7 $2 {[%emt 0:04:04]} (31. Bd5 $11 {and White is okay.}) 31... Kxd7 $19 {[%emt 0:00:05]} 32. Bxf7 $11 {[%emt 0:00:37][%mdl 4096] Endgame [#] KRB-KRN} Kc6 $1 {[%emt 0:00:59]} 33. Kf2 {[%emt 0:01:03]} Kc5 {[%emt 0:00:48] And now ...Rf8 would win.} 34. Ke3 {[%emt 0:00:38]} (34. Kg3 {was called for.}) 34... Ra8 $19 {[%emt 0:00:45]} 35. Bd5 $2 {[%emt 0:00:10]} (35. Kd3 {was necessary.}) 35... Rxa5 {[%emt 0:00:07]} 36. Bxb7 {[%emt 0:00:09]} Kxb6 {[%emt 0:00:05]} 37. Bc8 {[%emt 0:00:30]} Kc5 {[%emt 0:00:12] aiming for ...b3.} 38. Be6 {[%emt 0:00:27]} Ra3 {[%emt 0:00:30]} 39. Rc2 {[%emt 0:00:21]} Ra1 {[%emt 0:00:50]} 40. g3 {[%emt 0:00:32]} (40. h4 {was worth a try.}) 40... Re1+ {[%emt 0:00:27]} 41. Kf2 {[%emt 0:00:21]} Rh1 {[%emt 0:00:25]} 42. Ke3 {[%emt 0:00:11]} Re1+ {[%emt 0:01:34]} 43. Kf2 {[%emt 0:00:02]} Rd1 {[%emt 0:00:05]} 44. Ke3 {[%emt 0:00:35]} Kb5 {[%emt 0:00:42]} 45. Bg8 {[%emt 0:00:29]} h6 {[%emt 0:00:08]} 46. Bf7 {[%emt 0:00:09]} g5 {[%emt 0:00:13][%cal Og5g4]} 47. f4 $2 {[%emt 0:00:16] [#]} (47. h4 {is a better chance.}) 47... gxf4+ {[%emt 0:00:14] Black is clearly winning.} 48. gxf4 {[%emt 0:00:01]} exf4+ {[%emt 0:00:07]} 49. Kf3 {[%emt 0:00:14]} Rf1+ {[%emt 0:00:24]} 50. Kg2 {[%emt 0:00:02]} Re1 {[%emt 0:00:05]} 51. Bg6 {[%emt 0:00:22]} Kc4 {[%emt 0:01:04]} 52. Bf7+ {[%emt 0:00:11]} Kd3 {[%emt 0:00:06]} 53. Rb2 {[%emt 0:00:01]} Re2+ {[%emt 0:01:41] Weighted Error Value: White=0.63/Black=0.18 (very precise)} 0-1

[Event "Israeli Team U18-ch 2022"]
[Site "Be'er Ya'akov"]
[Date "2022.08.15"]
[Round "3.5"]
[White "Levin, Guy"]
[Black "Zemach, Nadav"]
[Result "1-0"]
[ECO "A13"]
[WhiteElo "2363"]
[BlackElo "2225"]
[Annotator "TA"]
[PlyCount "100"]
[EventDate "2022.08.14"]
[EventCountry "ISR"]
[SourceTitle "playchess.com"]
[Source "ChessBase"]
[SourceQuality "1"]
[TimeControl "3000+10"]

{[%evp 9,100,5,10,15,16,17,14,23,28,5,0,7,-4,-1,4,-18,20,10,32,31,48,39,84,81,132,93,102,96,93,91,85,93,140,126,318,310,310,298,320,303,309,303,315,320,300,292,368,350,346,375,364,354,343,306,295,209,312,375,358,383,763,682,770,729,779,751,1393,1312,29964,29965,29963,29965,29965,29965,29964,29966,29968,29963,29971,29973,29969,29969,29977,29976,29978,29979,29979,29979,29988,29989,29989,29990,29990]} 1. c4 {[%emt 0:50:20]} e6 {[%emt 0:50:20]} 2. g3 {[%emt 0:00:10]} d5 {[%emt 0:00:10][%cal Bd7d5,Bd5d4][%mdl 32]} 3. Bg2 {[%emt 0:00:10]} d4 {[%emt 0:00:10]} 4. Nf3 {[%emt 0:00:10]} c5 {[%emt 0:00:10]} 5. d3 {[%emt 0:00:10]} Nc6 {[%emt 0:00:10]} 6. e3 {[%emt 0:00:10] A13: English Opening: 1...e6.} Nf6 {[%emt 0:00:10]} 7. O-O {[%emt 0:00:10]} Bd6 {[%emt 0:00:10]} 8. exd4 {[%emt 0:00:10] The position is equal.} cxd4 {[%emt 0:00:10]} 9. Na3 {[%emt 0:00:00]} O-O {[%emt 0:00:00]} 10. Nc2 {[%emt 0:00:00]} e5 {[%emt 0:00:00]} 11. b4 {[%emt 0:00:00]} Re8 {[%emt 0:00:00]} 12. c5 {[%emt 0:00:00]} Bc7 {[%emt 0:00:00]} 13. Bg5 {[%emt 0:00:00]} h6 {[%emt 0:00:00]} 14. Bxf6 {[%emt 0:00:00]} Qxf6 {[%emt 0:00:00] [#]} 15. b5 $146 {[%emt 0:00:00]} ({Predecessor:} 15. Nd2 Qg6 16. b5 Ne7 17. Nc4 Be6 18. Re1 Bxc4 19. dxc4 Ba5 20. Re4 Rac8 21. Ne1 {1-0 (40) Mikhalevski,V (2565)-Schiendorfer,E (2310) Porto Carras 2018}) 15... Nd8 {[%emt 0:00:00]} 16. Nb4 {[%emt 0:00:00] And now Nd5 would win.} Be6 {[%emt 0:00:00] Prevents Nd5.} (16... Qe7 $142) 17. Nd2 {[%emt 0:00:00][%cal Bf3d2,Bd2e4,Be4d6][%mdl 32]} Qe7 {[%emt 0:00:00]} 18. Rc1 {[%emt 0:00:00]} Rc8 {[%emt 0:00:00]} 19. Qa4 {[%emt 0:00:00] Inhibits Ba5.} Bb8 {[%emt 0:00:00]} 20. Ne4 {[%emt 0:00:00]} f5 {[%emt 0:00:00]} ({Better is} 20... b6) 21. Nd6 $1 $16 {[%emt 0:00:00] White is more active.} Bxd6 {[%emt 0:00:00] This costs Black the game.} (21... Rxc5 $16 22. Nxe8 (22. Rxc5 Bxd6 23. Nd5 Qf7 $11) 22... Rxc1 23. Rxc1 Qxe8) 22. cxd6 $18 {[%emt 0:00:00]} Qxd6 {[%emt 0:00:00]} 23. b6 $1 {[%emt 0:00:00][%mdl 64] Discovered Attack} Bd7 {[%emt 0:00:00] [#]} 24. Rxc8 $1 {[%emt 0:00:00][%mdl 64] Pin} Bxa4 {[%emt 0:00:00]} 25. bxa7 {[%emt 0:00:00]} Bd7 {[%emt 0:00:00]} 26. Rb8 {[%emt 0:00:00]} Qxb4 {[%emt 0:00:00]} 27. a8=Q {[%emt 0:00:00]} Qe7 {[%emt 0:00:00]} 28. Bxb7 {[%emt 0:00:00]} Nxb7 {[%emt 0:00:00]} 29. Qxb7 {[%emt 0:00:00]} Rxb8 {[%emt 0:00:00]} 30. Qxb8+ {[%emt 0:00:00][%mdl 4096] Endgame KQR-KQB} Kh7 {[%emt 0:00:00]} 31. Re1 {[%emt 0:00:00]} e4 {[%emt 0:00:00]} 32. Qb7 {[%emt 0:00:00][%cal Rd3e4]} Qe6 {[%emt 0:00:00]} (32... Qd6 $142 33. dxe4 Bc6) 33. dxe4 {[%emt 0:00:00]} Bc6 {[%emt 0:00:00] Against Qd5} 34. Qb3 {[%emt 0:00:00]} Qxb3 {[%emt 0:00:00]} (34... Qe5 35. Qb6 Ba8) 35. axb3 {[%emt 0:00:00]} fxe4 {[%emt 0:00:00] KR-KB} 36. Rd1 {[%emt 0:00:00]} d3 {[%emt 0:00:00]} 37. f3 {[%emt 0:00:00][%cal Bf2f3,Bf3e4][%mdl 32]} Bd5 {[%emt 0:00:10]} 38. fxe4 {[%emt 0:00:00]} Bxb3 {[%emt 0:00:01]} 39. Rxd3 {[%emt 0:00:00] White mates.} Bc2 {[%emt 0:00:02]} 40. Rd4 {[%emt 0:00:00]} Kg6 {[%emt 0:00:04]} 41. Kf2 {[%emt 0:00:00]} Kf6 {[%emt 0:00:07]} 42. Ke3 {[%emt 0:00:00]} Bb3 {[%emt 0:00:50]} 43. Kf4 {[%emt 0:00:00]} Be6 {[%emt 0:00:02]} 44. e5+ {[%emt 0:00:00]} Kf7 {[%emt 0:00:06]} 45. h4 {[%emt 0:00:00]} g6 {[%emt 0:00:33]} 46. Ra4 {[%emt 0:00:00]} Bb3 {[%emt 0:00:12]} 47. Ra7+ {[%emt 0:00:00]} Kg8 {[%emt 0:00:07]} 48. Re7 {[%emt 0:00:00]} Bc4 {[%emt 0:00:11]} 49. e6 {[%emt 0:00:00]} Kf8 {[%emt 0:00:01]} 50. Rf7+ {[%emt 0:00:00]} Kg8 {[%emt 0:00:09] Weighted Error Value: White=0.06 (flawless) /Black=0.36} 1-0

[Event "Israeli Team U18-ch 2022"]
[Site "Be'er Ya'akov"]
[Date "2022.08.15"]
[Round "3.6"]
[White "Vagman, Roy"]
[Black "Ben Ari, Yannay"]
[Result "1-0"]
[ECO "B42"]
[WhiteElo "2180"]
[BlackElo "2411"]
[Annotator "TA"]
[PlyCount "99"]
[EventDate "2022.08.14"]
[EventCountry "ISR"]
[SourceTitle "playchess.com"]
[Source "ChessBase"]
[SourceQuality "1"]
[TimeControl "3000+10"]

{[%evp 16,99,18,0,3,10,39,36,41,0,0,10,0,3,0,0,8,0,0,-25,-29,-23,-23,-37,-32,-42,-32,-26,-27,-35,-35,-45,-29,-37,-53,-78,-75,-81,-83,-93,-89,-123,-41,-43,-51,-92,-42,-45,-6,-17,-8,-90,0,0,114,123,102,103,279,275,258,275,273,225,225,225,280,275,368,365,480,383,403,383,420,427,412,363,387,387,406,399,594,616,585,569]} 1. e4 {[%emt 0:00:03]} c5 {[%emt 0:00:56]} 2. Nf3 {[%emt 0:00:09]} e6 {[%emt 0:00:01]} 3. d4 {[%emt 0:00:19]} cxd4 {[%emt 0:00:01]} 4. Nxd4 {[%emt 0:00:08]} a6 {[%emt 0:49:52]} 5. Nc3 {[%emt 0:03:00]} Qc7 {[%emt 0:00:00]} 6. Bd3 {[%emt 0:02:35]} Nf6 {[%emt 0:00:00]} 7. O-O {[%emt 0:00:23]} d6 {[%emt 0:00:00]} 8. Qe2 {[%emt 0:02:25] 8.a4 is becoming the main line.} Be7 {[%emt 0:00:00]} 9. Kh1 {[%emt 0:01:07]} e5 {[%emt 0:00:00] B42: Sicilian: Kan Variation: 5 Bd3.} 10. Nb3 {[%emt 0:01:31]} Be6 {[%emt 0:00:00]} 11. f4 {[%emt 0:03:44]} exf4 {[%emt 0:00:00] [#] White is slightly better.} 12. Nd4 $146 {[%emt 0:01:59]} ({Predecessor:} 12. Bxf4 Nc6 13. Rae1 Ne5 14. Nd4 O-O 15. Bg5 Ne8 16. Bc1 Bh4 17. Nxe6 fxe6 18. Rxf8+ Kxf8 {½-½ (51) Jansa,V (2500)-Voloshin,L (2390) Mlada Boleslav 1994}) 12... Nc6 {[%emt 0:00:00]} 13. Nxc6 {[%emt 0:08:20]} Qxc6 {[%emt 0:00:00]} 14. Bxf4 {[%emt 0:00:12]} O-O {[%emt 0:00:00]} 15. Rae1 {[%emt 0:03:34][%cal Ba1e1,Be1e3,Be3g3,Bg3g5][%mdl 32]} Rfe8 {[%emt 0:00:00]} 16. Qd2 {[%emt 0:04:16]} Rad8 {[%emt 0:00:00]} 17. Bg5 {[%emt 0:01:34]} Ng4 {[%emt 0:00:48]} 18. Bxe7 {[%emt 0:09:35]} Rxe7 {[%emt 0:00:02]} 19. Qf4 {[%emt 0:02:20][%cal Oe4e5]} Ne5 {[%emt 0:01:16]} 20. Re3 {[%emt 0:00:22]} Qc5 {[%emt 0:00:02]} 21. Rg3 {[%emt 0:00:40] Threatens to win with Qf6.} Ng6 {[%emt 0:00:03]} 22. Qd2 {[%emt 0:01:12]} Kh8 {[%emt 0:00:17]} 23. Rg5 {[%emt 0:00:18]} Qb6 {[%emt 0:00:28]} 24. Na4 {[%emt 0:01:47]} Qd4 {[%emt 0:00:01]} 25. Qa5 {[%emt 0:00:26]} Ree8 {[%emt 0:00:01]} 26. Nc3 {[%emt 0:00:25][%cal Ba4c3,Bc3e2,Be2d4][%mdl 32] Against d5} Ne5 {[%emt 0:00:11]} 27. Rg3 {[%emt 0:00:05]} Qc5 {[%emt 0:00:07]} 28. Qa4 {[%emt 0:00:44] [#]} Ng4 {[%emt 0:00:12]} (28... Nc4 $1 $17 {[%cal Rc4b2]} 29. Bxc4 Bxc4) 29. h3 $15 {[%emt 0:00:40]} Ne5 {[%emt 0:00:01]} 30. Kh2 {[%emt 0:00:08]} Ra8 {[%emt 0:00:08]} (30... h5 $17 {aiming for ...h4.} 31. Nd5 g6) 31. Ne2 {[%emt 0:00:53]} Nc6 {[%emt 0:00:15]} 32. c3 {[%emt 0:00:17]} Ne5 {[%emt 0:00:05]} 33. Qd4 {[%emt 0:00:07]} (33. Nd4 $11) 33... Qxd4 {[%emt 0:00:25]} ({Better is} 33... Bxa2 $17 34. Qa4 Be6) 34. Nxd4 $11 {[%emt 0:00:02]} Bxa2 {[%emt 0:00:05] [#]} (34... g6 $11 {keeps the balance.}) 35. b3 $1 $16 {[%emt 0:00:14]} Rac8 {[%emt 0:00:07]} 36. Bc2 {[%emt 0:00:19] Ra1 is the strong threat.} (36. Ra1 {is more complex.} Bxb3 37. Nxb3 Rxc3 38. Be2) 36... Nc6 $2 {[%emt 0:00:31] This costs Black the game.} (36... Rc5 $16) 37. Nxc6 $18 {[%emt 0:00:08]} Rxc6 {[%emt 0:00:10]} 38. Ra1 {[%emt 0:00:01]} ({Don't do} 38. Rxf7 g6 $18) 38... Rec8 {[%emt 0:00:12]} 39. c4 {[%emt 0:00:15]} Bxb3 {[%emt 0:00:11]} 40. Bxb3 {[%emt 0:00:01]} Kg8 {[%emt 0:00:08]} 41. Rf3 {[%emt 0:00:12]} Rc5 {[%emt 0:00:06]} 42. Rd1 {[%emt 0:00:01]} R8c6 {[%emt 0:00:07]} 43. Rfd3 {[%emt 0:00:10]} Kf8 {[%emt 0:00:11]} 44. Rxd6 {[%emt 0:00:06]} Rxd6 {[%emt 0:00:12]} 45. Rxd6 {[%emt 0:00:02] KRB-KR} Ke7 {[%emt 0:00:08]} 46. Rd5 {[%emt 0:00:07]} Rc6 {[%emt 0:00:01]} 47. c5 {[%emt 0:00:06] Against Rb6} b6 {[%emt 0:00:21]} 48. Re5+ {[%emt 0:00:19]} Kd8 {[%emt 0:00:12]} (48... Kf8 {is a better defense.} 49. cxb6 Rxb6) 49. cxb6 {[%emt 0:00:06]} Rxb6 {[%emt 0:00:01]} 50. Bxf7 {[%emt 0:00:03] Weighted Error Value: White=0.14 (very precise) /Black=0.35} 1-0

[Event "Israeli Team U18-ch 2022"]
[Site "Be'er Ya'akov"]
[Date "2022.08.15"]
[Round "3.7"]
[White "Kochavi, Ori"]
[Black "Levi, Or"]
[Result "1/2-1/2"]
[ECO "B50"]
[WhiteElo "2364"]
[BlackElo "1784"]
[Annotator "TA"]
[PlyCount "68"]
[EventDate "2022.08.14"]
[EventCountry "ISR"]
[SourceTitle "playchess.com"]
[Source "ChessBase"]
[SourceQuality "1"]
[TimeControl "3000+10"]

{[%evp 14,68,6,-12,-8,-2,1,-17,-23,-23,-20,-21,-14,-45,-46,-47,-38,-97,-67,-123,-120,-114,-104,-100,-68,-88,-70,-70,-68,-69,-68,-58,-44,-35,-39,-38,0,-65,-70,-70,-22,-48,0,0,41,44,47,26,23,-81,-81,-73,-60,-91,0,-52,91]} 1. e4 {[%emt 0:00:57]} c5 {[%emt 0:00:24]} 2. Nf3 {[%emt 0:00:05]} d6 {[%emt 0:00:05]} 3. Bc4 {[%emt 0:00:06]} Nf6 {[%emt 0:02:25]} 4. d3 {[%emt 0:00:08]} Nc6 {[%emt 0:00:41]} 5. c3 {[%emt 0:00:05]} g6 {[%emt 0:00:12]} 6. O-O {[%emt 0:00:13]} Bg7 {[%emt 0:00:05]} 7. Re1 {[%emt 0:01:41]} O-O {[%emt 0:00:26]} 8. Bb3 {[%emt 0:00:11]} b5 {[%emt 0:02:08][%cal Bb7b5,Bb5b4][%mdl 32] B50: Sicilian: 2...d6, Miscellaneous.} 9. h3 $1 {[%emt 0:00:58] 9.h3 scores better than 9.Nbd2.} Bb7 {[%emt 0:02:18]} 10. Nbd2 {[%emt 0:01:13] [#]} a5 $146 {[%emt 0:02:58] The position is equal.} ({Predecessor:} 10... Rc8 11. Nf1 a5 12. a4 b4 13. Ng3 Nd7 14. Bg5 bxc3 15. bxc3 Bxc3 16. Rc1 Bxe1 17. Qxe1 {0-1 (42) Sevian,S (2666)-Nihal,S (2598) Chess.com INT 2019}) 11. a4 {[%emt 0:00:36]} b4 {[%emt 0:00:14]} 12. Nf1 {[%emt 0:02:25]} Ba6 {[%emt 0:03:38]} 13. Ng3 {[%emt 0:03:14]} Rb8 {[%emt 0:02:01]} 14. Bc2 {[%emt 0:01:25]} Nd7 {[%emt 0:04:14]} 15. Bd2 {[%emt 0:04:55]} (15. Ne2 $15) 15... Qc7 {[%emt 0:06:05]} 16. Qc1 {[%emt 0:02:35]} ({Better is} 16. Ne2 $15) 16... Nde5 $17 {[%emt 0:01:43]} 17. Nxe5 {[%emt 0:00:07]} Nxe5 {[%emt 0:00:07]} 18. c4 {[%emt 0:00:09]} Rfe8 {[%emt 0:04:42]} 19. Ne2 {[%emt 0:01:20]} Nc6 {[%emt 0:00:42]} 20. Bh6 {[%emt 0:01:50]} Bh8 {[%emt 0:00:55]} 21. Rb1 {[%emt 0:00:10]} e6 {[%emt 0:03:56]} 22. b3 $1 {[%emt 0:00:23]} Nd4 {[%emt 0:00:47]} 23. Nxd4 {[%emt 0:00:08]} Bxd4 {[%emt 0:00:07]} 24. Bd1 {[%emt 0:00:44]} d5 {[%emt 0:01:38]} 25. Qg5 {[%emt 0:02:54]} (25. exd5 $11 exd5 26. Bf3) 25... dxc4 {[%emt 0:00:43]} 26. dxc4 {[%emt 0:00:10]} Qe5 {[%emt 0:00:28]} (26... f6 $1 $15 27. Qg4 e5) 27. Qh4 {[%emt 0:01:14]} Rbd8 {[%emt 0:04:18]} (27... Qd6 $1 $15) 28. Bf4 $11 {[%emt 0:01:34]} Qf6 {[%emt 0:00:56]} 29. Qxf6 {[%emt 0:01:13]} Bxf6 {[%emt 0:00:01]} 30. Bc7 {[%emt 0:00:06]} (30. e5 $5 {[%cal Re5f6]} Rd4 31. g3 $14) 30... Rd7 {[%emt 0:02:53]} 31. Bxa5 {[%emt 0:06:28]} (31. e5 $1 $11 {keeps the balance.}) 31... Bc3 $36 {[%emt 0:00:08][%mdl 2048] Black is in control.} 32. Re3 {[%emt 0:06:04]} Bd4 {[%emt 0:03:32][%mdl 1024] Black has strong compensation.} 33. Re1 {[%emt 0:10:19] [#]} Rb7 {[%emt 0:00:10] Prevents Bb6.} ({Black should play} 33... Rb8 $1 $17) 34. e5 {[%emt 0:00:10]} (34. Rc1 $1 $11) 34... Rd7 {[%emt 0:00:10] Weighted Error Value: White=0.22 (precise) /Black=0.14 (very precise)} (34... Reb8 $1 $15) 1/2-1/2